Cogmind - Beta 12 @@@ ROGUE MODE // 2023.09.07 @ 18:51:44 Player: monistgf Result: Destroyed by Tiamat Bomb Trap Performance ------------- Evolutions (7) 3500 Regions Visited (16) 3200 Robots Destroyed (109) 545 Value Destroyed (3941) 3941 Prototype IDs (6) 120 Alien Tech Used (0) 0 Bonus (758) 758 TOTAL SCORE: 12064 Bonus ------- High Alert Combat Kills 124 Follower Combat Kills 541 Aligned with FarCom 300 Friendly Fire -207 Cogmind --------- Core Integrity 0/1300 Matter 208/300 Energy 99/100 System Corruption 1% Temperature Cool (0) Movement Core (50) Location -3/Research Parts ------- > --- POWER (2) -------- (None) > --- PROPULSION (5) --- (None) > --- UTILITY (10) ----- (None) > --- WEAPON (4) ------- (None) > --- INVENTORY (5) ---- Neutrino Core Large Storage Unit Matter Compressor (250) Transport Network Coupler Improved Field Recycling Unit (31) Peak State ------------ > --- POWER ------------ Neutrino Core Light Particle Reactor > --- PROPULSION ------- Carbon-fiber Leg Flexi-carbon Leg Improved VSS Leg Experimental Flexi-carbon Leg > --- UTILITY ---------- Advanced Cooling System Large Storage Unit Terrain Scanner Improved Weapon Cycler Advanced Thermal Shield Hacking Suite Improved Hacking Suite System Guard System Guard Improved Field Recycling Unit > --- WEAPON ----------- Autogun Railgun Hardcell Cannon Force Lance > --- INVENTORY -------- Light Nuclear Core Micro Fission Core Advanced Cooling System Large Storage Unit Matter Compressor Transport Network Coupler Thermal Shield Long-range Tractor Beam Flak Gun Bore Cannon Hardcell Cannon Hardcell Cannon Hardcell Cannon Long-range Missile Launcher [Rating: 107] Favorites ----------- Power Antimatter Reactor Engine Light Angular Momentum Engine Power Core Light Nuclear Core Reactor Antimatter Reactor Propulsion Flexi-carbon Leg Treads Heavy Treads Leg Flexi-carbon Leg Wheel Compact Wheel Hover Unit Backup Propulsion III Utility Medium Storage Unit Device Improved Cooling System Storage Medium Storage Unit Processor Improved Targeting Computer Hackware Hacking Suite Protection Improved Medium Armor Plating Weapon Flak Gun Energy Gun Backup Laser III Ballistic Gun Flak Gun Ballistic Cannon Bore Cannon Launcher Rocket Launcher Slashing Weapon Chainsword Piercing Weapon Force Lance Build | -11 -10 -10 -9 -9 -9 -8 -8 -7 -7 -7 -7 -7 -6 -5 -4 -3 ------- Run | Jun Mat Min Mat Min Exi Min Mat Fac Was Fac Low Low Fac Fac Fac Res Slots Evolved 14 | . . . 2 . . . 2 2 . . . . 2 2 2 2 Power 1 | . . . . . . . . . . . . . . 1 . . Propulsion 3 | . . . . . . . 1 1 . . . . . . 1 . Utility 8 | . . . . . . . 1 1 . . . . 2 1 1 2 Weapon 2 | . . . 2 . . . . . . . . . . . . . Parts Attached 157 | 10 9 1 9 5 . 4 23 3 11 2 1 . 24 14 28 13 Power 23 | 2 2 . 2 1 . . 2 . 1 . . . 4 1 5 3 Engine 13 | 2 2 . 2 . . . 2 . . . . . 1 1 3 . Core 6 | . . . . 1 . . . . . . . . 1 . 2 2 Reactor 4 | . . . . . . . . . 1 . . . 2 . . 1 Propulsion 39 | 3 1 1 3 2 . . 9 1 5 . . . 10 . 4 . Treads 9 | 1 1 . . . . . 3 . 4 . . . . . . . Leg 29 | 2 . . 3 2 . . 6 1 1 . . . 10 . 4 . Wheel 1 | . . 1 . . . . . . . . . . . . . . Hover . | . . . . . . . . . . . . . . . . . Flight . | . . . . . . . . . . . . . . . . . Utility 44 | 1 1 . 1 . . . 6 1 3 1 1 . 5 9 12 3 Device 16 | . . . 1 . . . . 1 1 . . . 1 4 5 3 Storage 12 | 1 1 . . . . . 3 . 1 . . . 1 1 4 . Processor 3 | . . . . . . . 1 . . . . . . . 2 . Hackware 2 | . . . . . . . . . . . . . . 2 . . Protection 11 | . . . . . . . 2 . 1 1 1 . 3 2 1 . Artifact . | . . . . . . . . . . . . . . . . . Weapon 51 | 4 5 . 3 2 . 4 6 1 2 1 . . 5 4 7 7 Energy Gun 1 | 1 . . . . . . . . . . . . . . . . Energy Cannon . | . . . . . . . . . . . . . . . . . Ballistic Gun 31 | 3 4 . 3 2 . 2 5 1 2 1 . . 4 . 3 1 Ballistic Cannon 9 | . . . . . . . . . . . . . . 2 2 5 Launcher 5 | . 1 . . . . 2 1 . . . . . . . . 1 Special Weapon . | . . . . . . . . . . . . . . . . . Impact Weapon . | . . . . . . . . . . . . . . . . . Slashing Weapon 3 | . . . . . . . . . . . . . 1 2 . . Piercing Weapon 2 | . . . . . . . . . . . . . . . 2 . Special Melee Weapon . | . . . . . . . . . . . . . . . . . Unidentified Prototypes 4 | . . . . . . . 1 . . . . . . . 3 . Parts Lost 51 | . . . 1 . . . 2 . 5 . . . 4 2 13 24 Power 8 | . . . . . . . 1 . 1 . . . . . 3 3 Propulsion 11 | . . . . . . . 1 . 2 . . . . . 4 4 Utility 14 | . . . . . . . . . 1 . . . 1 1 4 7 Weapon 18 | . . . 1 . . . . . 1 . . . 3 1 2 10 Highest Loss Streak 24 | . . . 1 . . . 1 . 5 . . . 1 1 6 24 To Critical Strikes . | . . . . . . . . . . . . . . . . . Average Slot Usage (%) 88 | . 82 85 100 100 100 100 97 100 73 84 76 76 86 98 91 76 Engine 3 | . 13 14 11 1 . . 7 7 3 . . . . 5 4 . Core 1 | . . . . 9 11 11 1 . . . . . . . 2 6 Reactor 3 | . . . . . . . . . 3 7 7 7 5 5 3 . Treads 4 | . 7 14 4 . . . 1 . 8 15 15 15 8 . . . Leg 15 | . 19 6 13 22 22 22 23 30 5 . . . 9 23 23 15 Device 9 | . . . 11 11 11 11 1 7 4 7 7 7 13 13 14 15 Storage 7 | . 14 14 11 11 11 11 9 7 6 7 7 7 8 5 5 3 Processor 2 | . . . . . . . 7 7 7 7 . . . . . 7 Hackware 3 | . . . . . . . . . . . . . . 7 10 7 Protection 6 | . . . . . . . 9 7 4 7 7 7 11 11 6 . Ballistic Gun 24 | . 27 28 44 44 44 40 35 30 18 29 30 30 25 17 9 7 Naked Turns 61 | . . . . . . . . . . . . . . . . 61 Heaviest Build 92 | 13 18 18 22 24 24 30 42 43 48 50 57 57 72 83 84 92 Greatest Support 140 | 20 20 20 23 25 25 25 66 45 140 140 140 140 140 75 98 73 Greatest Overweight (x) 3 | . 1 1 1 1 . 1 1 . 1 . . . 1 1 1 3 Average Overweight (x) . | . . . . . . . . . . . . . . . . . Largest Inventory Capacity 15 | 8 10 10 10 10 10 10 15 15 15 10 10 10 10 10 15 15 Average Capacity 10 | 6 8 10 10 10 10 10 10 15 10 10 10 10 10 10 12 13 Most Carried 15 | 3 9 10 10 10 10 10 15 14 15 10 10 10 10 10 15 15 Average Carried 10 | 1 6 9 8 10 10 10 10 12 10 9 9 10 9 9 10 13 Final Capacity 15 | 8 10 10 10 10 10 10 15 15 10 10 10 10 10 10 15 5 Final Carried 14 | 3 8 10 10 10 10 10 14 14 10 9 10 10 9 10 11 5 Class Distribution -------------------- 27% | Scavenger-Skirmisher 26% | Scavenger-Tank 13% | Hacker-Mutant 9% | Mutant 6% | Tank 6% | Scavenger-Assassin 4% | Skirmisher 3% | Hacker-Tank Dominant Class ---------------- Mutant | -10/Materials Mutant | -10/Mines Scavenger-Skirmisher | -9/Materials Scavenger-Skirmisher | -9/Mines Scavenger-Skirmisher | -9/Exiles Scavenger-Skirmisher | -8/Mines Scavenger-Skirmisher | -8/Materials Skirmisher | -7/Factory Scavenger-Skirmisher | -7/Waste Scavenger-Skirmisher | -7/Factory Scavenger-Tank | -7/Lower Caves Scavenger-Tank | -7/Lower Caves Scavenger-Tank | -6/Factory Tank | -5/Factory Hacker-Mutant | -4/Factory Scavenger-Assassin | -3/Research Resources | -11 -10 -10 -9 -9 -9 -8 -8 -7 -7 -7 -7 -7 -6 -5 -4 -3 ----------- Run | Jun Mat Min Mat Min Exi Min Mat Fac Was Fac Low Low Fac Fac Fac Res Matter Collected 4004 | 194 135 64 223 90 . 7 419 . 366 49 36 99 1205 144 962 11 Remotely 37 | . . . . . . . . . . . . . . 37 . . Salvage Created 3999 | . 186 . 274 86 . 10 433 . . 126 49 150 1421 136 966 162 Parts 208 | . 11 . 15 5 . 7 38 . . 12 . 8 54 5 51 2 Haulers Intercepted 6 | . 1 . . . . . 2 . . 1 . . 1 . 1 . Recyclers Shooed 9 | . 1 . . 1 . . . . . . . . 7 . . . Parts Field Recycled 30 | . . . . . . . . . . . . . . . 28 2 Retrieved Matter 381 | . . . . . . . . . . . . . . . 346 35 Parts Self-Destructed 15 | . . . . . . . . . . . 3 12 . . . . Prevented . | . . . . . . . . . . . . . . . . . Kills | -11 -10 -10 -9 -9 -9 -8 -8 -7 -7 -7 -7 -7 -6 -5 -4 -3 ------- Run | Jun Mat Min Mat Min Exi Min Mat Fac Was Fac Low Low Fac Fac Fac Res Combat Hostiles Destroyed 85 | . 8 . 5 3 . 4 13 . . 1 2 4 26 3 13 3 Melee 3 | . . . . . . . . . . . . . . . 3 . Guns 63 | . 4 . 5 3 . . 9 . . 1 2 4 26 2 7 . Cannons 4 | . . . . . . . . . . . . . . 1 3 . AOE 15 | . 4 . . . . 4 4 . . . . . . . . 3 Classes Destroyed 14 | . 3 . 2 1 . . 1 . . 1 . . 4 . . 2 Worker 5 | . . . . . . . . . . . . . 3 . 2 . Builder 4 | . . . . . . . . . . 1 . . . . 3 . Tunneler 2 | . . . . . . . . . . . . . 1 . 1 . Hauler 6 | . 1 . . . . . 2 . . 1 . . 1 . 1 . Recycler 3 | . . . . . . . . . . . . . 1 . 2 . Watcher 3 | . . . . . . . 1 . . . . . . 2 . . Swarmer 25 | . 6 . . . . 4 8 . . . . 1 2 . 4 . Grunt 34 | . 2 . 4 2 . . 3 . . . 2 2 18 . . 1 Duelist 1 | . . . 1 . . . . . . . . . . . . . Sentry 9 | . . . 1 . . . 2 . . 1 . 1 3 . 1 . Demolisher 1 | . . . . 1 . . . . . . . . . . . . Specialist 1 | . . . . . . . . . . . . . . . . 1 Hunter 1 | . . . . . . . . . . . . . . . . 1 Programmer 14 | . . . . . . . . . . . . . 3 3 8 . Best Kill Streak 9 | . 5 . 3 2 . 4 5 . . 2 1 3 6 1 9 3 Combat Bots Only 6 | . 5 . 3 2 . 4 4 . . 1 1 3 6 1 6 3 Max Kills in Single Turn 4 | . 3 . 1 1 . 4 4 . . 2 1 1 2 1 1 2 Gunslinging 1 | . . . . . . . . . . . . . 1 . . . Exploded 4 | . 3 . . . . 4 4 . . . . . . . . 2 Melee 1 | . . . . . . . . . . . . . . . 1 . Uniques/NPCs Destroyed . | . . . . . . . . . . . . . . . . . Combat | -11 -10 -10 -9 -9 -9 -8 -8 -7 -7 -7 -7 -7 -6 -5 -4 -3 -------- Run | Jun Mat Min Mat Min Exi Min Mat Fac Was Fac Low Low Fac Fac Fac Res Damage Taken 9756 | . 175 . 267 169 . 6 285 . 236 190 . 431 1770 472 2356 3399 Core 1922 | . 67 . 33 13 . 6 34 . 42 31 . 5 101 21 246 1323 Absorbed by Shields 649 | . . . . . . . . . . . . . 649 . . . Reduced by Siege Mode 84 | . . . . . . . . . . . . 45 39 . . . Regen/Repaired (Parts) 356 | . . . . . . . . . 119 53 . 54 130 . . . Core Remaining (%) 88 | 100 . 73 . . . 87 93 . . . . 88 88 97 78 . Volleys Fired 219 | . 15 . 14 10 . 1 27 . 1 3 2 7 75 13 43 8 Largest 4 | . 2 . 4 4 . 2 4 . 4 4 4 4 4 4 4 3 Hottest 195 | . 40 . 80 80 . 66 96 . 98 112 112 112 117 141 148 195 Shots Fired 701 | . 26 . 56 39 . 2 98 . 4 10 8 28 283 47 82 18 Gun 637 | . 24 . 56 39 . . 95 . 4 10 8 28 283 38 49 3 Cannon 55 | . . . . . . . . . . . . . . 9 33 13 Launcher 9 | . 2 . . . . 2 3 . . . . . . . . 2 Special . | . . . . . . . . . . . . . . . . . Kinetic 692 | . 24 . 56 39 . . 95 . 4 10 8 28 283 47 82 16 Thermal . | . . . . . . . . . . . . . . . . . Explosive 9 | . 2 . . . . 2 3 . . . . . . . . 2 Electromagnetic . | . . . . . . . . . . . . . . . . . Robot Hit Streak 20 | . 6 . 8 8 . 3 10 . 1 4 6 15 20 4 8 7 Robot Miss Streak 12 | . 2 . 3 2 . . 7 . 3 3 . 2 8 12 9 2 Penetration Max 1 | . . . . . . . . . . . . . . . 1 . Secondary Targets 8 | . . . 1 . . . 1 . . . . 1 5 . . . Max Gunslinging Chain 1 | . . . 1 . . . 1 . . . . 1 1 . . . Shots Hit Robots 505 | . 18 . 36 25 . 1 49 . 1 6 3 20 221 35 77 13 Core Hits 310 | . 13 . 14 9 . 4 24 . . 4 3 11 143 28 42 15 Critical Kills 6 | . . . . . . . . . . . . . 3 1 2 . Critical Parts Destroyed 11 | . . . 1 1 . . . . . . . . 1 . 8 . Critical Strikes 19 | . . . 1 1 . . . . . . . . 5 1 11 . Destroy 18 | . . . 1 1 . . . . . . . . 5 1 10 . Impale 1 | . . . . . . . . . . . . . . . 1 . Melee Attacks 44 | . . . . . . . . . . . . . 1 2 32 9 Impact . | . . . . . . . . . . . . . . . . . Slashing 17 | . . . . . . . . . . . . . 1 2 14 . Piercing 27 | . . . . . . . . . . . . . . . 18 9 Sneak Attacks 8 | . . . . . . . . . . . . . . . 8 . Combat Hostiles . | . . . . . . . . . . . . . . . . . Follow-up Attacks . | . . . . . . . . . . . . . . . . . Damage Inflicted 11566 | . 439 . 351 214 . 193 1026 . 20 135 106 388 4363 561 2434 1336 Guns 7652 | . 168 . 351 212 . . 731 . 20 114 106 388 4075 524 935 28 Cannons 773 | . . . . . . . . . . . . . . 37 363 373 Explosions 1922 | . 269 . . . . 193 292 . . . . . 233 . . 935 Melee 1136 | . . . . . . . . . . . . . . . 1136 . Ramming 83 | . 2 . . 2 . . 3 . . 21 . . 55 . . . Kinetic 8425 | . 168 . 351 212 . . 731 . 20 114 106 388 4075 561 1298 401 Thermal . | . . . . . . . . . . . . . . . . . Explosive 1922 | . 269 . . . . 193 292 . . . . . 233 . . 935 Electromagnetic . | . . . . . . . . . . . . . . . . . Impact . | . . . . . . . . . . . . . . . . . Slashing 537 | . . . . . . . . . . . . . . . 537 . Piercing 599 | . . . . . . . . . . . . . . . 599 . Highest Corruption 17 | . . . . . . . . . . 1 1 1 3 3 17 1 Average Corruption 3 | . . . . . . . . . . 1 1 1 2 1 7 1 Corruption Purged . | . . . . . . . . . . . . . . . . . Corruption Blocked . | . . . . . . . . . . . . . . . . . Effects 66 | . . . . . . . . . . 2 8 1 19 4 32 . Message Errors 20 | . . . . . . . . . . 1 4 . 5 1 9 . Matter Fused 13 | . . . . . . . . . . . . 1 5 1 6 . Heat Flow Errors 8 | . . . . . . . . . . . 1 . 2 . 5 . Energy Discharges 11 | . . . . . . . . . . . 2 . 4 . 5 . Parts Rejected 1 | . . . . . . . . . . . . . . . 1 . Parts Fused 1 | . . . . . . . . . . . . . . . 1 . Data Loss (minor) 6 | . . . . . . . . . . 1 1 . 1 1 2 . Data Loss (major) 1 | . . . . . . . . . . . . . . 1 . . Alerts 2 | . . . . . . . . . . . . . 1 . 1 . Weapon Failures 3 | . . . . . . . . . . . . . 1 . 2 . Overload Shots . | . . . . . . . . . . . . . . . . . Overflow Damage 283 | . 2 . . . . 41 . . . . . . 88 . 92 60 Projectiles . | . . . . . . . . . . . . . . . . . Explosions 187 | . 2 . . . . 41 . . . . . . 84 . . 60 Melee 96 | . . . . . . . . . . . . . 4 . 92 . Knockbacks 6 | . . . . . . . . . . . . . . . 5 1 Impact . | . . . . . . . . . . . . . . . . . Kinetic 6 | . . . . . . . . . . . . . . . 5 1 Secondary . | . . . . . . . . . . . . . . . . . Self-Inflicted Damage 251 | . . . . . . . . . . . . . 155 . . 96 Shots 4 | . . . . . . . . . . . . . 2 . . 2 Rammed 9 | . . . . . . . . . . 4 . . 5 . . . Targets Rammed 14 | . 1 . . 2 . . 1 . . 4 . . 5 . 1 . Kicked 5 | . 1 . . 2 . . 1 . . . . . . . 1 . Crushed . | . . . . . . . . . . . . . . . . . Highest Temperature 253 | . 3 . 192 253 . 3 176 . 46 . 59 8 193 . 209 88 Average Temperature 68 | . 2 . 73 107 . 2 61 . 31 . 38 6 68 . 79 34 Received Heat Transfer 1556 | . 24 . 117 75 . . 99 . . . . 123 556 . 9 553 Siege Activations 7 | . . . . . . . . . . . . 1 6 . . . Total Turns 159 | . . . . . . . . . . . . 20 139 . . . Longest Duration 41 | . . . . . . . . . . . . 20 41 . . . Robots Corrupted . | . . . . . . . . . . . . . . . . . Combat Hostiles . | . . . . . . . . . . . . . . . . . Parts Fried . | . . . . . . . . . . . . . . . . . Impact Corruptions 1 | . . . . . . . . . . . . . 1 . . . Robots Melted . | . . . . . . . . . . . . . . . . . Combat Hostiles . | . . . . . . . . . . . . . . . . . Parts Melted 3 | . . . 2 . . . . . . . . . . . 1 . Heat Transferred . | . . . . . . . . . . . . . . . . . Parts Sabotaged . | . . . . . . . . . . . . . . . . . Parts Stolen . | . . . . . . . . . . . . . . . . . Parts Stripped . | . . . . . . . . . . . . . . . . . Power Chain Reactions . | . . . . . . . . . . . . . . . . . Missiles Intercepted . | . . . . . . . . . . . . . . . . . Alert | -11 -10 -10 -9 -9 -9 -8 -8 -7 -7 -7 -7 -7 -6 -5 -4 -3 ------- Run | Jun Mat Min Mat Min Exi Min Mat Fac Was Fac Low Low Fac Fac Fac Res Peak Influence 552 | . 234 91 147 117 . 99 291 47 17 120 . . 552 235 160 295 Initial 223 | . . 91 35 32 . . 38 47 16 . . . 109 223 . 69 Average 117 | . 104 91 80 90 . 14 125 47 3 83 . . 307 109 59 107 Maximum Alert Level 2 | . 1 . . . . . 1 . . . . . 2 1 . 1 Low Security (%) 80 | 100 81 100 100 100 . 100 74 100 100 100 . . 40 63 100 84 Level 1 11 | . 18 . . . . . 25 . . . . . 13 36 . 15 Level 2 7 | . . . . . . . . . . . . . 45 . . . Level 3 . | . . . . . . . . . . . . . . . . . Level 4 . | . . . . . . . . . . . . . . . . . Level 5 . | . . . . . . . . . . . . . . . . . High Security . | . . . . . . . . . . . . . . . . . Max Security . | . . . . . . . . . . . . . . . . . Squads Dispatched 37 | . 1 . 1 . . . 3 . . 5 . . 9 4 8 6 Investigation 11 | . . . 1 . . . 1 . . 1 . . 3 . 2 3 Extermination 9 | . . . . . . . . . . 1 . . 2 3 3 . Reinforcement 13 | . 1 . . . . . 2 . . 3 . . 3 1 . 3 Assault 1 | . . . . . . . . . . . . . 1 . . . Garrison 3 | . . . . . . . . . . . . . . . 3 . Intercept . | . . . . . . . . . . . . . . . . . Searches Triggered . | . . . . . . . . . . . . . . . . . Construction Impeded 2 | . . . . . . . . . . 1 . . . . . 1 Haulers Reinforced 3 | . . . . . . . . . . 1 . . 2 . . . Active Scanning Responses . | . . . . . . . . . . . . . . . . . Cargo Convoy Interrupts . | . . . . . . . . . . . . . . . . . Stealth | -11 -10 -10 -9 -9 -9 -8 -8 -7 -7 -7 -7 -7 -6 -5 -4 -3 --------- Run | Jun Mat Min Mat Min Exi Min Mat Fac Was Fac Low Low Fac Fac Fac Res Distress Signals 8 | . . . 2 . . . 2 . . . . . 2 . 2 . Communications Jammed . | . . . . . . . . . . . . . . . . . Distress Signals . | . . . . . . . . . . . . . . . . . Times Spotted 149 | . 10 . 11 4 . 1 17 . 6 4 6 6 35 10 20 19 Peak Tracking Total 11 | . 5 . 5 2 . 4 7 . 6 2 2 3 5 2 4 11 Tactical Retreats 4 | . . . . . . . . . . . . . 2 . . 2 Traps | -11 -10 -10 -9 -9 -9 -8 -8 -7 -7 -7 -7 -7 -6 -5 -4 -3 ------- Run | Jun Mat Min Mat Min Exi Min Mat Fac Was Fac Low Low Fac Fac Fac Res Traps Triggered 14 | . 3 . . . . . 1 1 . 2 . . 2 2 2 1 Indirectly . | . . . . . . . . . . . . . . . . . Trap Hack Attempts . | . . . . . . . . . . . . . . . . . Triggered . | . . . . . . . . . . . . . . . . . Disarmed . | . . . . . . . . . . . . . . . . . Reprogrammed . | . . . . . . . . . . . . . . . . . Reused . | . . . . . . . . . . . . . . . . . Traps Extracted . | . . . . . . . . . . . . . . . . . Installed . | . . . . . . . . . . . . . . . . . Triggered . | . . . . . . . . . . . . . . . . . Machines | -11 -10 -10 -9 -9 -9 -8 -8 -7 -7 -7 -7 -7 -6 -5 -4 -3 ---------- Run | Jun Mat Min Mat Min Exi Min Mat Fac Was Fac Low Low Fac Fac Fac Res Machines Disabled 13 | . . . . . . . 1 . . . . . 8 . 4 . Max in Single Turn 3 | . . . . . . . 1 . . . . . 3 . 3 . Garrison Access 1 | . . . . . . . . . . . . . . . . 1 Machines Repaired . | . . . . . . . . . . . . . . . . . Machines Sabotaged . | . . . . . . . . . . . . . . . . . Overloaded Fab Kills . | . . . . . . . . . . . . . . . . . Hacking | -11 -10 -10 -9 -9 -9 -8 -8 -7 -7 -7 -7 -7 -6 -5 -4 -3 --------- Run | Jun Mat Min Mat Min Exi Min Mat Fac Was Fac Low Low Fac Fac Fac Res Machines Accessed 33 | . 2 . 4 . . . 4 . . 1 . . 9 2 4 7 Terminals 28 | . 2 . 4 . . . 4 . . 1 . . 7 2 4 4 Fabricators 1 | . . . . . . . . . . . . . 1 . . . Repair Stations . | . . . . . . . . . . . . . . . . . Recycling Units 1 | . . . . . . . . . . . . . . . . 1 Scanalyzers 1 | . . . . . . . . . . . . . . . . 1 Garrison Access 2 | . . . . . . . . . . . . . 1 . . 1 Total Hacks 94 | . 8 . 16 . . . 13 . . 3 . . 22 4 12 16 Successful 36 | . 7 . 7 . . . 6 . . 1 . . 5 2 5 3 Failed 57 | . 1 . 8 . . . 7 . . 2 . . 17 2 7 13 Catastrophic 14 | . . . 1 . . . 3 . . . . . 4 . 2 4 Database Lockouts 1 | . . . 1 . . . . . . . . . . . . . Manual 57 | . 8 . 11 . 1 . 9 . . 2 . . 12 2 6 6 Terminals 82 | . 8 . 16 . . . 13 . . 3 . . 17 4 12 9 Fabricators 2 | . . . . . . . . . . . . . 2 . . . Repair Stations . | . . . . . . . . . . . . . . . . . Recycling Units 2 | . . . . . . . . . . . . . . . . 2 Scanalyzers 2 | . . . . . . . . . . . . . . . . 2 Garrison Access 6 | . . . . . . . . . . . . . 3 . . 3 Terminal Hacks 21 | . 4 . 5 . . . 3 . . 1 . . 3 1 4 . Robot Analysis 3 | . 2 . 1 . . . . . . . . . . . . . Prototype ID Bank 1 | . . . 1 . . . . . . . . . . . . . Level Access Points 1 | . . . . . . . . . . . . . . . 1 . Branch Access Points 3 | . 1 . 1 . . . 1 . . . . . . . . . Terminal Index 2 | . . . . . . . . . . . . . 1 . 1 . Recycling Unit Index 1 | . . . . . . . . . . . . . . . 1 . Alert Level 4 | . . . 1 . . . 1 . . 1 . . 1 . . . Unreport Threat 4 | . . . 1 . . . 1 . . . . . 1 1 . . Recall Reinforcements 1 | . 1 . . . . . . . . . . . . . . . Hauler Manifests 1 | . . . . . . . . . . . . . . . 1 . Fabricator Hacks . | . . . . . . . . . . . . . . . . . Repair Station Hacks . | . . . . . . . . . . . . . . . . . Recycling Unit Hacks 1 | . . . . . . . . . . . . . . . . 1 Report Inventory 1 | . . . . . . . . . . . . . . . . 1 Scanalyzer . | . . . . . . . . . . . . . . . . . Garrison Access Hacks . | . . . . . . . . . . . . . . . . . Unauthorized Hacks 14 | . 3 . 2 . . . 3 . . . . . 2 1 1 2 Terminals 12 | . 3 . 2 . . . 3 . . . . . 2 1 1 . Track 4 | . 2 . 1 . . . 1 . . . . . . . . . Assimilate 1 | . . . . . . . 1 . . . . . . . . . Botnet 7 | . 1 . 1 . . . 1 . . . . . 2 1 1 . Fabricators . | . . . . . . . . . . . . . . . . . Repair Stations . | . . . . . . . . . . . . . . . . . Recycling Units 1 | . . . . . . . . . . . . . . . . 1 Mask 1 | . . . . . . . . . . . . . . . . 1 Scanalyzers . | . . . . . . . . . . . . . . . . . Garrison Access 1 | . . . . . . . . . . . . . . . . 1 Jam 1 | . . . . . . . . . . . . . . . . 1 Data Cores Recovered . | . . . . . . . . . . . . . . . . . Used . | . . . . . . . . . . . . . . . . . Hacking Detections 33 | . 2 . 4 . . . 4 . . 1 . . 9 2 4 7 Full Trace Events 7 | . . . 1 . . . . . . . . . 2 . 2 2 Feedback Events . | . . . . . . . . . . . . . . . . . Feedback Blocked . | . . . . . . . . . . . . . . . . . Robot Schematics Acquired . | . . . . . . . . . . . . . . . . . Robots Built . | . . . . . . . . . . . . . . . . . Authchips . | . . . . . . . . . . . . . . . . . Time . | . . . . . . . . . . . . . . . . . Total Robot Build Rating . | . . . . . . . . . . . . . . . . . Part Schematics Acquired . | . . . . . . . . . . . . . . . . . Parts Built . | . . . . . . . . . . . . . . . . . Authchips . | . . . . . . . . . . . . . . . . . Time . | . . . . . . . . . . . . . . . . . Total Part Build Rating . | . . . . . . . . . . . . . . . . . Parts Repaired . | . . . . . . . . . . . . . . . . . Time . | . . . . . . . . . . . . . . . . . Parts Recycled . | . . . . . . . . . . . . . . . . . Recycled Matter . | . . . . . . . . . . . . . . . . . Retrieved Matter . | . . . . . . . . . . . . . . . . . Retrieved Components . | . . . . . . . . . . . . . . . . . Parts Scanalyzed . | . . . . . . . . . . . . . . . . . Part Schematics Acquired . | . . . . . . . . . . . . . . . . . Parts Damaged . | . . . . . . . . . . . . . . . . . Bothacking | -11 -10 -10 -9 -9 -9 -8 -8 -7 -7 -7 -7 -7 -6 -5 -4 -3 ------------ Run | Jun Mat Min Mat Min Exi Min Mat Fac Was Fac Low Low Fac Fac Fac Res Used RIF Installer . | . . . . . . . . . . . . . . . . . Robots Hacked . | . . . . . . . . . . . . . . . . . Non-combat . | . . . . . . . . . . . . . . . . . Combat . | . . . . . . . . . . . . . . . . . Robot Hacks Applied . | . . . . . . . . . . . . . . . . . Relay Couplers Released . | . . . . . . . . . . . . . . . . . Fabnet Peak Effective % . | . . . . . . . . . . . . . . . . . Robots Rewired . | . . . . . . . . . . . . . . . . . Allies Hacked 1 | . . . . . . . . . . . . . 1 . . . Hacks Repelled . | . . . . . . . . . . . . . . . . . Allies | -11 -10 -10 -9 -9 -9 -8 -8 -7 -7 -7 -7 -7 -6 -5 -4 -3 -------- Run | Jun Mat Min Mat Min Exi Min Mat Fac Was Fac Low Low Fac Fac Fac Res Total Allies 21 | . . 3 . . . . . . 18 . . . . . . . Largest Group 18 | . . 3 3 . . . . . 18 13 5 3 2 . . . Highest-Rated Group 434 | . . 40 40 . . . . . 434 342 138 81 50 . . . Highest-Rated Ally 35 | . . 16 16 . . . . . 35 35 35 31 25 . . . Total Orders . | . . . . . . . . . . . . . . . . . Ally Attacks 140 | . . . 18 . . . . . 56 42 17 7 . . . . Total Damage 4588 | . . . 176 . . . . . 2636 632 1041 103 . . . . Kills 24 | . . . 2 . . . . . 9 3 7 3 . . . . Allies Corrupted 1 | . . . . . . . . . . 1 . . . . . . Allies Melted . | . . . . . . . . . . . . . . . . . Intel | -11 -10 -10 -9 -9 -9 -8 -8 -7 -7 -7 -7 -7 -6 -5 -4 -3 ------- Run | Jun Mat Min Mat Min Exi Min Mat Fac Was Fac Low Low Fac Fac Fac Res Robot Analysis Total 3 | . 2 . 1 . . . . . . . . . . . . . Derelict Logs Recovered 1 | . . 1 . . . . . . . . . . . . . . Drone Launches . | . . . . . . . . . . . . . . . . . Drone Recoveries . | . . . . . . . . . . . . . . . . . Exploration | -11 -10 -10 -9 -9 -9 -8 -8 -7 -7 -7 -7 -7 -6 -5 -4 -3 ------------- Run | Jun Mat Min Mat Min Exi Min Mat Fac Was Fac Low Low Fac Fac Fac Res Turns Passed 10033 | 64 302 195 332 231 412 240 913 112 797 440 884 160 1509 1091 1801 550 Spaces Moved 5717 | 39 163 139 220 130 344 128 363 89 487 249 541 72 694 711 975 373 Core 161 | 4 . . . . . . . . 41 . . . . . . 116 Treads 1680 | 3 80 53 . . . . 33 . 276 249 541 72 373 . . . Legs 3706 | 32 83 . 136 130 344 128 330 89 170 . . . 321 711 975 257 Wheels 170 | . . 86 84 . . . . . . . . . . . . . Hover . | . . . . . . . . . . . . . . . . . Flight . | . . . . . . . . . . . . . . . . . Fastest Speed 50 | 50 120 115 115 120 120 120 120 120 50 160 160 160 112 112 105 50 Average Speed 137 | 115 144 132 118 137 120 128 184 120 152 160 160 160 144 128 122 97 Slowest Speed 330 | 160 190 160 120 190 120 190 225 120 225 160 160 160 190 187 190 330 Overloaded Moves . | . . . . . . . . . . . . . . . . . Propulsion Burnouts . | . . . . . . . . . . . . . . . . . Robots Hopped . | . . . . . . . . . . . . . . . . . Cave-ins Triggered . | . . . . . . . . . . . . . . . . . Exploration Rate (%) 29 | 3 34 37 22 25 62 37 40 3 96 9 62 5 19 17 20 12 Regions Visited 16 Branch Regions 6 Pre-discovered Areas 1 | . . 1 . . . . . . . . . . . . . . Known Exits Taken 3 | . 1 . 1 . . . . . . . . . . . 1 . Unknown Exits Taken 11 | 1 . 1 . 1 1 1 1 . . 1 1 1 1 1 . . Scrap Searched 3 | . . 1 . . . . . . . . 1 1 . . . . Spaces Dug 11 | . . . . . . . . . . . . . 1 2 2 6 Terrain Destroyed 164 | . 15 . . . . 18 31 . . . 1 . 31 8 42 18 Melee 11 | . . . . . . . . . . . . . 1 2 2 6 Projectile 36 | . . . . . . . . . . . 1 . 6 6 21 2 AOE 116 | . 15 . . . . 18 31 . . . . . 24 . 18 10 Terrain Rammed . | . . . . . . . . . . . . . . . . . Walls Destroyed . | . . . . . . . . . . . . . . . . . Machines Disabled . | . . . . . . . . . . . . . . . . . Actions | -11 -10 -10 -9 -9 -9 -8 -8 -7 -7 -7 -7 -7 -6 -5 -4 -3 --------- Run | Jun Mat Min Mat Min Exi Min Mat Fac Was Fac Low Low Fac Fac Fac Res Total 7378 | 53 209 150 274 168 343 200 561 95 543 286 557 99 1019 852 1440 529 Wait 1041 | 4 7 9 11 15 . 68 112 . 28 13 5 21 183 100 344 121 Move 5702 | 38 162 138 219 129 343 127 362 89 486 248 540 71 693 710 974 373 Hop . | . . . . . . . . . . . . . . . . . Pick Up 97 | . 9 1 10 1 . . 17 2 11 7 3 . 20 4 9 3 Fast Attach 44 | 7 5 1 1 . . . 4 . 4 . 1 . 5 5 10 1 Attach 47 | . 1 . 4 . . . 3 2 6 . . . 10 2 10 9 Detach 12 | 1 1 1 1 . . . . . 2 . 2 . 1 1 1 1 Swap 66 | 3 3 . 4 5 . 4 16 1 1 2 . . 9 7 8 3 Drop 88 | . 5 . 10 6 . . 19 1 4 9 3 . 17 8 5 1 Fire 219 | . 15 . 14 10 . 1 27 . 1 3 2 7 75 13 43 8 Melee 44 | . . . . . . . . . . . . . 1 2 32 9 Ram . | . . . . . . . . . . . . . . . . . Kick 5 | . 1 . . 2 . . 1 . . . . . . . 1 . Crush 9 | . . . . . . . . . . 4 . . 5 . . . Escape Stasis 3 | . . . . . . . . . . . . . . . 3 . Rewire 1 | . . . . . . . . . . . 1 . . . . . Trap . | . . . . . . . . . . . . . . . . . Miscellaneous . | . . . . . . . . . . . . . . . . . Route ------- -11/Junkyard -10/Materials -10/Mines -9/Materials (discovered 2 exits: *Min x2) -9/Mines (discovered 2 exits: *Mat / *Exi) -9/Exiles (discovered 2 exits: [*Min x2]) -8/Mines -8/Materials -7/Factory -7/Waste -7/Factory -7/Lower Caves -7/Lower Caves -6/Factory -5/Factory (discovered 2 exits: *Fac / [*Upp]) -4/Factory (discovered 4 exits: *Res x4) -3/Research (discovered 1 exit: [*Tes]) History --------- Turn | Location | Event 15 | -11/Junkyard | Discovered new exit (range 15) 65 | -11/Junkyard | Entered Materials 165 | -10/Materials | Identified exit to Mines 339 | -10/Materials | Build established: Mutant 367 | -10/Materials | Entered Mines 387 | -10/Mines | Learned location of Storage (-7) 524 | -10/Mines | Assisted by bots powering up and referring to "LRC-V3" 551 | -10/Mines | Discovered new exit (range 5) 562 | -10/Mines | Entered Materials 562 | -9/Materials | Accompanied by 3 allies 562 | -9/Materials | Evolved 2 slots: Weapon x2 773 | -9/Materials | Identified exit to Mines 821 | -9/Materials | Central database locked down 894 | -9/Materials | Entered Mines 948 | -9/Mines | Assembled infested the area 953 | -9/Mines | Assisted by a Guerilla fighting off Assembled 953 | -9/Mines | Joined a pair of Derelicts in attacking an 0b10 outpost 983 | -9/Mines | Build established: Scavenger-Skirmisher 1077 | -9/Mines | Discovered new exit (range 7) 1121 | -9/Mines | Deemed a non-threat by the Exiles lab entrance 1121 | -9/Mines | Discovered new exit (range 5) 1125 | -9/Mines | Entered Exiles 1158 | -9/Exiles | Met 8R-AWN 1172 | -9/Exiles | Met EX-HEX 1209 | -9/Exiles | Met EX-BIN 1224 | -9/Exiles | Aligned with FarCom system 1225 | -9/Exiles | Given EX-Vault access code 1272 | -9/Exiles | Opened EX-Vault 1305 | -9/Exiles | Warned to stay clear of 0b10 Research branches 1340 | -9/Exiles | Met EX-DEC 1382 | -9/Exiles | Discovered new exit (range 12) 1523 | -9/Exiles | Discovered new exit (range 14) 1537 | -9/Exiles | Entered Mines 1712 | -8/Mines | Discovered new exit (range 13) 1777 | -8/Mines | Entered Materials 1777 | -8/Materials | Evolved 2 slots: Propulsion x1, Utility x1 2613 | -8/Materials | Discovered new exit (range 7) 2690 | -8/Materials | Entered Factory 2690 | -7/Factory | Evolved 2 slots: Propulsion x1, Utility x1 2802 | -7/Factory | Sucked down chute 2802 | -7/Factory | Entered Waste 2844 | -7/Waste | Spotted C-40 Crusher 2853 | -7/Waste | Spotted C-40 Crusher 2866 | -7/Waste | Spotted C-40 Crusher 2877 | -7/Waste | Spotted C-40 Crusher 2882 | -7/Waste | Crushed by Compactor (1 part destroyed, 2 dropped) 2885 | -7/Waste | Spotted C-40 Crusher 2885 | -7/Waste | Spotted C-40 Crusher 2885 | -7/Waste | Crushed by Compactor (1 part destroyed, 2 dropped) 2888 | -7/Waste | Crushed by Compactor (1 part destroyed, 1 dropped) 2889 | -7/Waste | Crushed by Compactor (1 part destroyed, 2 dropped) 2891 | -7/Waste | Crushed by Compactor (1 part destroyed, 1 dropped) 2907 | -7/Waste | Warlord forces began an assault 2908 | -7/Waste | Allies destroyed C-40 Crusher 2911 | -7/Waste | Allies destroyed C-40 Crusher 2922 | -7/Waste | Lost 5 parts (1p2n1u1w) 3575 | -7/Waste | Discovered new exit (range 11) 3599 | -7/Waste | Entered Factory 3599 | -7/Factory | Accompanied by 13 allies 3999 | -7/Factory | Discovered new exit (range 15) 4039 | -7/Factory | Entered Lower Caves 4039 | -7/Lower Caves | Accompanied by 5 allies 4345 | -7/Lower Caves | Build established: Scavenger-Tank 4903 | -7/Lower Caves | Discovered new exit (range 6) 4923 | -7/Lower Caves | Entered another Lower Caves area 4923 | -7/Lower Caves | Accompanied by 3 allies 5010 | -7/Lower Caves | Discovered new exit (range 9) 5015 | -7/Lower Caves | Attracted the attention of an 0b10 checkpoint 5083 | -7/Lower Caves | Entered Factory 5083 | -6/Factory | Accompanied by 2 allies 5083 | -6/Factory | Evolved 2 slots: Utility x2 6483 | -6/Factory | First assault squad dispatched 6496 | -6/Factory | Discovered new exit (range 6) 6592 | -6/Factory | Entered another Factory area 6592 | -5/Factory | Evolved 2 slots: Power x1, Utility x1 6848 | -5/Factory | Build established: Tank 7442 | -5/Factory | Discovered new exit (range 3) 7484 | -5/Factory | Build established: Hacker-Tank 7494 | -5/Factory | Discovered new exit (range 9) 7683 | -5/Factory | Entered another Factory area 7683 | -4/Factory | Evolved 2 slots: Propulsion x1, Utility x1 7790 | -4/Factory | Build established: Hacker-Mutant 8180 | -4/Factory | Garrison activated, responded to threat 8681 | -4/Factory | Discovered new exit (range 10) 8823 | -4/Factory | System corruption reached 10% 8872 | -4/Factory | Lost 6 parts (1p2n3u) 9086 | -4/Factory | Lost 6 parts (1p2n1u2w) 9360 | -4/Factory | Identified exit to Research 9484 | -4/Factory | Entered Research 9484 | -3/Research | Evolved 2 slots: Utility x2 9615 | -3/Research | Build established: Scavenger-Assassin 9970 | -3/Research | Core integrity fell below 50% 9973 | -3/Research | Released all parts (3) 10004 | -3/Research | Lost 24 parts (3p4n7u10w) 10005 | -3/Research | Core integrity fell below 20% 10009 | -3/Research | Discovered new exit (range 10) 10034 | -3/Research | Destroyed by Tiamat Bomb Trap Last Messages --------------- 09983_ Penetrated by Slug. 09988_ Connecting with Terminal... 09998_ Drone sends a signal. 10001_ Penetrated by Slug. 10001_ Slug penetrates Wall. 10001_ Slug penetrates Door. 10001_ Slug penetrates Wall. 10009_ EXIT=FOUND 10010_ Connecting with Terminal... 10010_ ALERT: Suspicious activity at Terminal R015. Dispatching Investigation squad. 10021_ Knocked back. 10024_ Slug penetrates R-10 Processor. 10024_ Penetrated by Slug. 10024_ Knocked back. 10025_ Acquired 2 matter. 10031_ Penetrated by Slug. 10032_ Connecting with Terminal... 10034_ Triggered Tiamat Bomb Trap. 10034_ An explosion rips through the floor. Map ----- +----------------------------------------------------+ | ?????????????????????????????????????????????????? | | ?????????????????????????????????????????????????? | | ?????????????????????????????????????????????????? | | ?????????????????????????????????????????????????? | | ?????????????????????????????????????????????????? | | ?????????????????????????????????????????????????? | | ?????????????????????????????????????????????????? | | ?????????????????????????????????????????????????? | | ?????????????????????????????????????????????????? | | ?????????????????????????????????????????????????? | | ?????????????????????????????????????????????????? | | ?????????????????????????????????????????????????? | | ?????????????????????????????????????????????????? | | ?????????????????????????????????????????????????? | | ?????????????????????????????????????????????????? | | ?????????????????????????????????????????????????? | | ?????????????????????????????????????????????????? | | ?????????????????????????????????????????????????? | | ?????????????????????????????????????????????????? | | ??????????????????????????????????#??????????????? | | ?????????????????#########?????? #??????????????? | | ?????????????????# #????? ##?????????????? | | ?????????????????# #####u #?????????????? | | ????????????????## " ku #?????????????? | | ?############??# # "T Y #?????????????? | | # ? # @ #?????????????? | | # # ! ##### #?????????????? | | # """ # #???????????????????????? | | "" # """ ### ###???????????????????????? | | "" # "S #?# #?????????????????????????? | | "" # """ | #?# ###########???????????????? | | ?# "" #?# # ! #???????????????? | | ???# #?# # #???????????????? | | ##+###??# #?#H # #???????????????? | | #######Y####### # ] #???????????????? | | T" " #???????????????? | | " hw " #???????????????? | | g hY # ""Y"" #???????????????? | | #######+"########## """"" #???????????????? | | # ##???? #?????###########???????????????? | | # #??? #???????????????????????????????? | | + #??# #???????????????????????????????? | | # #??# #???????????????????????????????? | | # #??# #???????????????????????????????? | | # #??# """"" #???????????????????????????????? | | # #??# """"" #???????????????????????????????? | | # #??# """"" #???????????????????????????????? | | # #??###########???????????????????????????????? | | # #????????????????????????????????????????????? | | #????????????????????????????????????????????? | +----------------------------------------------------+ Best States ------------- Heat Dissipation 77 Energy Generation 37 Energy Capacity 875 Matter Stores 455 Matter Capacity 550 Sight Range 16 Terrain Scan Range 14 Terrain Scan Density 10 Corruption Containment 16 Armor Coverage 1650 Resistance: KI 20 Resistance: TH 30 Weapon Cycling 20 Evasion (%) 55 Targeting Accuracy 6 Recoil Reduction 4 Offensive Hacking 22 Item Schematics ----------------- None Robot Schematics ------------------ None Fabricated ------------ Nothing Alien Tech Used ----------------- None Achievements -------------- Brute Force Challenges ------------ None Game ------ Seed LongswordHeavyRegenerator Manual? 0 Play Time 01:55:58 Cumulative 30.4 hours Start 2023.09.07 @ 15:13:11 End 2023.09.07 @ 18:51:44 Sessions 3 Manual Loads 0 Difficulty Rogue Special Mode None Game No. 20 Rogue 20 Adventurer 0 Explorer 0 Win Type - Total 0 Types 0/0/0/0/0/0/0/0/0 Lore% 17 Gallery% 26 Achievement% 27 Wizard Run 0 Options --------- ASCII 0 Keyboard 1 Movement Numpad Keybinds 0 Fullscreen 1 Font 24/Terminus Map View 76x50 Tactical HUD 1 Map Filters NONE Filters NONE Steam 1 RUN: 611685ba-784a-480d-9a9f-6515eed3fd7d